Cogmind - Beta 9.6 --- EXPLORER MODE // 2020.07.25 @ 20:59:15 Player: Carter Result: Destroyed by S-10 Pest with Light Assault Rifle Performance ------------- Evolutions (1) 500 Regions Visited (2) 400 Robots Destroyed (24) 120 Value Destroyed (580) 580 Prototype IDs (0) 0 Alien Tech Used (0) 0 Bonus (0) 0 TOTAL SCORE: 1600 Bonus ------- None Cogmind --------- Core Integrity 0/400 Matter 22/300 Energy 100/100 System Corruption 0% Temperature Cool (0) Movement Core (550) Ox10 Location -9/Materials Parts ------- > --- POWER (1) -------- (None) > --- PROPULSION (2) --- (None) > --- UTILITY (3) ------ High-capacity Storage Unit Targeting Computer > --- WEAPON (4) ------- (None) > --- INVENTORY (12) --- Ion Engine Improved Ion Engine Medium Storage Unit Sensor Array ECM Suite Utility Shielding Grenade Launcher Grenade Launcher Peak State ------------ > --- POWER ------------ Improved Ion Engine > --- PROPULSION ------- Improved Treads Improved Treads > --- UTILITY ---------- High-capacity Storage Unit Targeting Computer Propulsion Shielding > --- WEAPON ----------- Heavy Assault Rifle Light Cannon Grenade Launcher Grenade Launcher > --- INVENTORY -------- Ion Engine Medium Storage Unit Sensor Array ECM Suite Utility Shielding Light Assault Rifle Light Assault Rifle [Rating: 14] Favorites ----------- Power Ion Engine Engine Ion Engine Propulsion Light Treads Treads Light Treads Utility Targeting Computer Storage High-capacity Storage Unit Processor Targeting Computer Protection Propulsion Shielding Weapon Grenade Launcher Energy Gun Medium Laser Ballistic Gun Light Assault Rifle Ballistic Cannon Light Cannon Launcher Grenade Launcher Build | -11 -10 -9 ------- Run | Scr Mat Mat Slots Evolved 3 | . 1 2 Power . | . . . Propulsion . | . . . Utility 1 | . . 1 Weapon 2 | . 1 1 Parts Attached 20 | 6 7 7 Power 2 | 1 . 1 Engine 2 | 1 . 1 Core . | . . . Reactor . | . . . Propulsion 4 | 2 . 2 Treads 4 | 2 . 2 Leg . | . . . Wheel . | . . . Hover . | . . . Flight . | . . . Utility 4 | 2 1 1 Device . | . . . Storage 2 | 1 1 . Processor 1 | 1 . . Hackware . | . . . Protection 1 | . . 1 Artifact . | . . . Weapon 10 | 1 6 3 Energy Gun 1 | . 1 . Energy Cannon . | . . . Ballistic Gun 5 | 1 1 3 Ballistic Cannon 1 | . 1 . Launcher 3 | . 3 . Special Weapon . | . . . Impact Weapon . | . . . Slashing Weapon . | . . . Piercing Weapon . | . . . Special Melee Weapon . | . . . Unidentified Prototypes . | . . . Parts Lost 8 | . 1 7 Power 1 | . . 1 Propulsion 2 | . . 2 Utility 1 | . . 1 Weapon 4 | . 1 3 Highest Loss Streak 7 | . 1 7 Average Slot Usage (%) 95 | . 97 92 Engine 11 | . 12 9 Treads 23 | . 25 19 Storage 11 | . 12 10 Processor 11 | . 12 10 Protection 2 | . . 9 Energy Gun 1 | . 1 . Ballistic Gun 13 | . 15 9 Ballistic Cannon 3 | . 1 8 Launcher 15 | . 15 16 Naked Turns . | . . . Heaviest Build 52 | 14 46 52 Greatest Support 46 | 40 40 46 Greatest Overweight (x) 2 | 2 1 1 Average Overweight (x) . | . . 1 Largest Inventory Capacity 12 | 8 12 12 Average Capacity 11 | 7 11 12 Most Carried 9 | 5 7 9 Average Carried 5 | 3 5 6 Final Capacity 12 | 8 12 12 Final Carried 8 | 4 7 8 Class Distribution -------------------- 55% | Hacker-Gunner 22% | Hacker-Bomber 21% | Hacker-Mutant Dominant Class ---------------- Hacker-Gunner | -10/Materials Hacker-Bomber | -9/Materials Resources | -11 -10 -9 ----------- Run | Scr Mat Mat Matter Collected 466 | 201 180 85 Remotely . | . . . Salvage Created 455 | . 274 181 Parts 44 | . 23 21 Haulers Intercepted . | . . . Recyclers Shooed 1 | . 1 . Parts Field Recycled . | . . . Retrieved Matter . | . . . Parts Self-Destructed . | . . . Prevented . | . . . Kills | -11 -10 -9 ------- Run | Scr Mat Mat Combat Hostiles Destroyed 16 | . 8 8 Guns 8 | . 6 2 Cannons 2 | . 1 1 AOE 6 | . 1 5 Classes Destroyed 7 | . 4 3 Worker 3 | . 3 . Operator 1 | . . 1 Watcher 4 | . 3 1 Swarmer 7 | . 4 3 Grunt 6 | . 4 2 Duelist 1 | . . 1 Sentry 2 | . . 2 Best Kill Streak 5 | . 5 3 Combat Bots Only 4 | . 4 3 Max Kills in Single Turn 3 | . 3 3 Gunslinging . | . . . Exploded 2 | . 1 2 Melee . | . . . Uniques/NPCs Destroyed . | . . . Combat | -11 -10 -9 -------- Run | Scr Mat Mat Damage Taken 1729 | . 387 1342 Core 444 | . 40 404 Absorbed by Shields . | . . . Core Remaining (%) 92 | 100 84 . Volleys Fired 50 | . 33 17 Largest 4 | . 3 4 Hottest 118 | . 95 118 Shots Fired 105 | . 66 39 Gun 63 | . 46 17 Cannon 15 | . 5 10 Launcher 27 | . 15 12 Special . | . . . Kinetic 63 | . 36 27 Thermal 15 | . 15 . Explosive 27 | . 15 12 Electromagnetic . | . . . Robot Hit Streak 35 | . 35 27 Robot Miss Streak 2 | . 2 . Penetration Max . | . . . Secondary Targets 2 | . 2 . Max Gunslinging Chain 1 | . 1 . Shots Hit Robots 62 | . 44 18 Core Hits 52 | . 30 22 Critical Hits 1 | . . 1 Critical Kills . | . . . Critical Parts Destroyed 1 | . . 1 Melee Attacks . | . . . Impact . | . . . Slashing . | . . . Piercing . | . . . Sneak Attacks . | . . . Combat Hostiles . | . . . Follow-up Attacks . | . . . Damage Inflicted 1356 | . 762 594 Guns 496 | . 380 116 Cannons 118 | . 32 86 Explosions 742 | . 350 392 Melee . | . . . Ramming . | . . . Kinetic 438 | . 236 202 Thermal 330 | . 176 154 Explosive 510 | . 272 238 Electromagnetic 78 | . 78 . Impact . | . . . Slashing . | . . . Piercing . | . . . Highest Corruption . | . . . Average Corruption . | . . . Corruption Purged . | . . . Overload Shots . | . . . Overflow Damage . | . . . Projectiles . | . . . Explosions . | . . . Melee . | . . . Knockbacks . | . . . Impact . | . . . Kinetic . | . . . Secondary . | . . . Self-Inflicted Damage 132 | . 62 70 Shots 8 | . 4 4 Rammed . | . . . Targets Rammed . | . . . Kicked . | . . . Crushed . | . . . Highest Temperature 320 | . 320 83 Average Temperature 75 | . 94 29 Received Heat Transfer 687 | . 228 459 Effects 1 | . 1 . Energy Bleed 1 | . 1 . Siege Activations . | . . . Robots Corrupted . | . . . Combat Hostiles . | . . . Parts Fried . | . . . Impact Corruptions . | . . . Robots Melted . | . . . Combat Hostiles . | . . . Parts Melted 1 | . 1 . Heat Transferred 618 | . 518 100 Parts Sabotaged . | . . . Parts Stolen . | . . . Parts Stripped . | . . . Power Chain Reactions . | . . . Missiles Intercepted . | . . . Alert | -11 -10 -9 ------- Run | Scr Mat Mat Peak Influence 302 | . 175 302 Average Influence 52 | . 37 97 Maximum Alert Level 1 | . . 1 Low Security (%) 94 | 100 100 78 Level 1 5 | . . 21 Level 2 . | . . . Level 3 . | . . . Level 4 . | . . . Level 5 . | . . . High Security . | . . . Max Security . | . . . Squads Dispatched 3 | . 1 2 Investigation 1 | . 1 . Extermination . | . . . Reinforcement 2 | . . 2 Assault . | . . . Garrison . | . . . Intercept . | . . . Construction Impeded . | . . . Haulers Reinforced . | . . . Stealth | -11 -10 -9 --------- Run | Scr Mat Mat Distress Signals 1 | . . 1 Communications Jammed . | . . . Distress Signals . | . . . Times Spotted 32 | . 13 19 Peak Tracking Total 5 | . 4 5 Tactical Retreats 3 | . . 3 Traps | -11 -10 -9 ------- Run | Scr Mat Mat Traps Triggered 1 | . 1 . Indirectly . | . . . Trap Hack Attempts . | . . . Triggered . | . . . Disarmed 1 | . 1 . Reprogrammed . | . . . Reused . | . . . Traps Extracted . | . . . Installed . | . . . Triggered . | . . . Machines | -11 -10 -9 ---------- Run | Scr Mat Mat Machines Disabled 6 | . 1 5 Max in Single Turn 2 | . 1 2 Machines Sabotaged . | . . . Garrisons Compromised . | . . . Overloaded Fab Kills . | . . . Fab Network Shutdowns . | . . . Hacking | -11 -10 -9 --------- Run | Scr Mat Mat Machines Accessed 6 | . 5 1 Terminals 3 | . 2 1 Fabricators . | . . . Repair Stations 1 | . 1 . Recycling Units 2 | . 2 . Scanalyzers . | . . . Garrison Access . | . . . Total Hacks 20 | . 17 3 Successful 16 | . 14 2 Failed 4 | . 3 1 Catastrophic 1 | . . 1 Database Lockouts . | . . . Manual . | . . . Terminals 9 | . 6 3 Fabricators . | . . . Repair Stations 6 | . 6 . Recycling Units 5 | . 5 . Scanalyzers . | . . . Garrison Access . | . . . Terminal Hacks 7 | . 5 2 Record 5 | . 3 2 Disarm Traps 1 | . 1 . Hauler Manifests 1 | . 1 . Fabricator Hacks . | . . . Repair Station Hacks 4 | . 4 . Scan Component 3 | . 3 . Repair 1 | . 1 . Recycling Unit Hacks 5 | . 5 . Process 1 | . 1 . Report Inventory 1 | . 1 . Retrieve Matter 1 | . 1 . Retrieve Components 2 | . 2 . Scanalyzer . | . . . Garrison Access Hacks . | . . . Unauthorized Hacks . | . . . Terminals . | . . . Fabricators . | . . . Repair Stations . | . . . Recycling Units . | . . . Scanalyzers . | . . . Garrison Access . | . . . Data Cores Recovered . | . . . Used . | . . . Hacking Detections 4 | . 3 1 Full Trace Events 3 | . 2 1 Feedback Events . | . . . Feedback Blocked . | . . . Robot Schematics Acquired . | . . . Robots Built . | . . . Matter . | . . . Time . | . . . Total Robot Build Rating . | . . . Part Schematics Acquired . | . . . Parts Built . | . . . Matter . | . . . Time . | . . . Total Part Build Rating . | . . . Parts Repaired 1 | . 1 . Time 18 | . 18 . Parts Recycled . | . . . Recycled Matter . | . . . Retrieved Matter . | . . . Retrieved Components 10 | . 10 . Parts Scanalyzed . | . . . Part Schematics Acquired . | . . . Parts Damaged . | . . . Bothacking | -11 -10 -9 ------------ Run | Scr Mat Mat Used RIF Installer . | . . . Robots Hacked . | . . . Non-combat . | . . . Combat . | . . . Robot Hacks Applied . | . . . Relay Couplers Released . | . . . Robots Rewired . | . . . Allies Hacked . | . . . Hacks Repelled . | . . . Allies | -11 -10 -9 -------- Run | Scr Mat Mat Total Allies . | . . . Largest Group . | . . . Highest-Rated Group . | . . . Highest-Rated Ally . | . . . Total Orders . | . . . Ally Attacks . | . . . Total Damage . | . . . Kills . | . . . Allies Corrupted . | . . . Allies Melted . | . . . Intel | -11 -10 -9 ------- Run | Scr Mat Mat Robot Analysis Total . | . . . Derelict Logs Recovered . | . . . Drone Launches . | . . . Drone Recoveries . | . . . Exploration | -11 -10 -9 ------------- Run | Scr Mat Mat Turns Passed 2262 | 86 1560 616 Spaces Moved 1028 | 55 731 242 Core 16 | 16 . . Treads 1012 | 39 731 242 Legs . | . . . Wheels . | . . . Hover . | . . . Flight . | . . . Fastest Speed 50 | 50 160 180 Average Speed 174 | 131 176 180 Slowest Speed 180 | 160 180 180 Overloaded Moves . | . . . Propulsion Burnouts . | . . . Robots Hopped . | . . . Cave-ins Triggered . | . . . Exploration Rate (%) 39 | 3 90 26 Regions Visited 2 Branch Regions . Pre-discovered Areas . | . . . Known Exits Taken 2 | 1 1 . Unknown Exits Taken . | . . . Scrap Searched . | . . . Spaces Dug 11 | . 11 . Terrain Destroyed 170 | . 72 98 Melee . | . . . Projectile . | . . . AOE 170 | . 72 98 Actions | -11 -10 -9 --------- Run | Scr Mat Mat Total 1411 | 68 948 395 Wait 290 | . 171 119 Move 1026 | 54 730 242 Hop . | . . . Pick Up 20 | 8 7 5 Fast Attach 2 | 2 . . Attach 11 | 4 4 3 Detach 2 | . . 2 Swap 7 | . 3 4 Drop 3 | . . 3 Fire 50 | . 33 17 Melee . | . . . Ram . | . . . Kick . | . . . Crush . | . . . Escape Stasis . | . . . Rewire . | . . . Trap . | . . . Miscellaneous . | . . . Route ------- -11/Scrapyard -10/Materials (discovered 4 exits: *Mat x3 / *Min) -9/Materials (discovered 2 exits: *Min / *Sto) History --------- Turn | Location | Event 15 | -11/Scrapyard | Identified exit to Materials 15 | -11/Scrapyard | Discovered exit to Materials (range 16) 87 | -11/Scrapyard | Entered Materials 87 | -10/Materials | Evolved 1 slot: Weapon x1 254 | -10/Materials | Identified exit to Materials 254 | -10/Materials | Discovered exit to Materials (range 5) 316 | -10/Materials | Build established: Hacker-Mutant 677 | -10/Materials | Build established: Hacker-Gunner 714 | -10/Materials | Discovered exit to Materials (range 16) 841 | -10/Materials | Discovered exit to Materials (range 5) 1174 | -10/Materials | Identified exit to Mines 1174 | -10/Materials | Discovered exit to Mines (range 8) 1275 | -10/Materials | Repaired Broken Grenade Launcher 1647 | -10/Materials | Entered another Materials area 1647 | -9/Materials | Evolved 2 slots: Utility x1, Weapon x1 1780 | -9/Materials | Identified exit to Storage 1780 | -9/Materials | Discovered exit to Storage (range 15) 1948 | -9/Materials | Build established: Hacker-Bomber 2063 | -9/Materials | Identified exit to Mines 2063 | -9/Materials | Discovered exit to Mines (range 9) 2229 | -9/Materials | Core integrity fell below 50% 2253 | -9/Materials | Core integrity fell below 20% 2263 | -9/Materials | Destroyed by S-10 Pest with Light Assault Rifle Last Messages --------------- 01998_ Acquired 2 matter. 01999_ U-05 Engineer builds a Wall. 02004_ U-05 Engineer lays Concrete. 02006_ U-05 Engineer builds a Door. 02011_ U-05 Engineer builds a Wall. 02024_ O-16 Technician: "IFF HANDSHAKE FAILED. SECURING TERMINAL." 02029_ ALERT: Hostiles spotted, dispatching reinforcements to Terminal M004. 02063_ EXIT=FOUND: MINES 02077_ U-05 Engineer lays Concrete. 02135_ C-30 ARC bursts open, deploying its payload. 02135_ G-47 Trooper unfolds itself. 02135_ G-34 Mercenary unfolds itself. 02186_ Lgt. Cannon destroyed. 02189_ Critical hit. 02189_ Hvy. Assault Rifle destroyed. 02203_ Imp. Ion Engine destroyed. 02211_ Lgt. Assault Rifle destroyed. 02231_ Propulsion Shielding destroyed. 02231_ Imp. Treads destroyed. Map ----- +----------------------------------------------------+ | ?????# """ """ #?# #??????????? | | ?????# """ """ #?# #??????????? | | ?????# """ """ #?# #??????????? | | ?????# #?# #??????????? | | ?????####+######## ##?????????? | | ####+## ##### #?????????? | | #?????????? | | #?????????? | | #?????????? | | ####### ## ## #?????????? | | ???########### ########?????????? | | ???# # #????????????????? | | #### # #????????????????? | | # """ # #????????????????? | | / """""# #????????????????? | | # """""# #????????????????? | | # " #????????????????? | | ?# * #????????????????? | | ?# #????????????????? | | #??#+######/## #??????########??? | | ???# #????#[ #??????# T *#??? | | ???# #????# #??????# #??? | | ???# #???## #??????# """ #??? | | ???# #???## #??????# """ #??? | | ???# ###### #??????# """ #??? | | ???# #??????# s@g #??? | | ???# #??????##s###+#??? | | ???# " ######## ## #??? | | ???# "%" #??? | | ???# ################## = ####??? | | ???# #?????????????# ##=# #????? | | ???# #?????######### # ###????? | | ???# #?????# [ ## # ##???? | | ???# ??????# #???? | | ???# ??????# #???? | | ???# ??????# > #???? | | ???# ??????# """ """ # ##???? | | ???# ??????+ """ """ # #????? | | ???? ??????# """ """ ## ####### | | ???? ??????# ## # # | | ???????????############ # " # | | ???????????### " ### # """ # | | ??????????## " ## # """ # | | ??????????# """" # # """ # | | ??????????# " # # "" # | | ??????????# " # + """ # | | ??????????# " # # "" # | | ???????????#" # "" # | | ???????????#" = # " # | | ???????????#" # # | +----------------------------------------------------+ Best States ------------- Heat Dissipation 28 Energy Generation 12 Energy Capacity 265 Matter Stores 300 Matter Capacity 300 Sight Range 16 Terrain Scan Density 10 Resistance: KI 35 Resistance: TH 35 Resistance: EX 35 Resistance: EM 35 Resistance: I 35 Resistance: S 35 Resistance: P 35 Propulsion Shielding 33 Evasion (%) 50 Targeting Accuracy 5 Recoil Reduction 2 Offensive Hacking 20 Item Schematics ----------------- None Robot Schematics ------------------ None Fabricated ------------ Nothing Alien Tech Used ----------------- None Achievements -------------- None Challenges ------------ None Game ------ Seed hacking suite Manual? 1 Play Time 00:20:40 Cumulative 7.7 hours Start 2020.07.25 @ 20:44:09 End 2020.07.25 @ 20:59:15 Sessions 1 Manual Loads 0 Difficulty Explorer Special Mode None Game No. 28 Rogue 22 Adventurer 0 Explorer 6 Win Type - Total 0 Types 0/0/0/0/0/0/0 Lore% 6 Gallery% 16 Achievement% 12 Wizard Run 0 Options --------- ASCII 0 Keyboard 0 Movement Mouse Keybinds 0 Fullscreen 1 Font 18/SmallcapsGlow Map View 76x50 Tactical HUD 1 Map Filters NONE Filters NONE Steam 1 RUN: cc10f811-b4ea-41b5-9a4c-b4880b013567